{"text_format":"3","workbook":"xlsx","n_sheets":1,"sheets":["Asmeninis mėnesio biudžetas"],"read":"whole","date_system":"1900"}

{"sheet":"Asmeninis mėnesio biudžetas","index":0,"n_rows":62,"n_cols":10,"rows_kept":62,"merged":[[0,1,0,9],[2,1,4,1],[2,2,2,3],[2,7,2,8],[3,2,3,3],[3,7,3,8],[4,2,4,3],[4,6,4,8],[5,1,7,1],[5,2,5,3],[5,7,5,8],[6,2,6,3],[6,7,6,8],[7,2,7,3],[7,6,7,8],[20,6,20,9],[21,1,21,4],[29,6,29,9],[31,1,31,4],[36,6,36,9],[38,1,38,4],[42,6,42,9],[44,1,44,4],[48,6,48,9],[52,1,52,4],[55,6,55,9]]}
[null,"Asmeninis mėnesio biudžetas"]
[]
[null,"NUMATOMOS MĖNESIO PAJAMOS","1 pajamos",null,{"v":2500,"d":"2,500 EUR"},null,"NUMATOMŲ IŠLAIDŲ BENDROJI SUMA ","(Numatomos pajamos atėmus išlaidas)",null,{"$f":"SUM(C21,C31,C38,C44,C52,C62,H20,H29,H36,H42,H48,H55)","v":{"v":2060,"d":"2,060 EUR"}}]
[null,null,"Papildomos pajamos",null,{"v":500,"d":"500 EUR"},null,"FAKTINIŲ IŠLAIDŲ BENDROJI SUMA ","(Faktinės pajamos atėmus išlaidas)",null,{"$f":"SUM(D21,D31,D38,D44,D52,D62,I20,I29,I36,I42,I48,I55)","v":{"v":2040,"d":"2,040 EUR"}}]
[null,null,"Mėnesio pajamų suma",null,{"$f":"SUM(E3:E4)","v":{"v":3000,"d":"3,000 EUR"}},null,"Išlaidų skirtumo bendroji suma",null,null,{"$f":"SUM(E21,E31,E38,E44,E52,E62,J20,J29,J36,J42,J48,J55)","v":{"v":20,"d":"20 EUR"}}]
[null,"FAKTINĖS MĖNESIO PAJAMOS","1 pajamos",null,{"v":2500,"d":"2,500 EUR"},null,"NUMATOMAS BALANSAS","(Numatomos pajamos atėmus išlaidas)",null,{"$f":"E5-J3","v":{"v":940,"d":"940 EUR"}}]
[null,null,"Papildomos pajamos",null,{"v":500,"d":"500 EUR"},null,"FAKTINIS BALANSAS","(Faktinės pajamos atėmus išlaidas)",null,{"$f":"E8-J4","v":{"v":960,"d":"960 EUR"}}]
[null,null,"Mėnesio pajamų suma",null,{"$f":"SUM(E6:E7)","v":{"v":3000,"d":"3,000 EUR"}},null,"BALANSO SKIRTUMAS (faktinis atėmus numatomą)",null,null,{"$f":"J7-J6","v":{"v":20,"d":"20 EUR"}}]
[]
[null,"BŪSTAS","Numatomos išlaidos","Faktinės išlaidos","Skirtumas",null,"PRAMOGOS","Numatomos išlaidos","Faktinės išlaidos","Skirtumas"]
[null,"Būsto paskola arba nuoma",{"v":1500,"d":"1,500 EUR"},{"v":1400,"d":"1,400 EUR"},{"$f":"Būstas[[#This Row],[Numatomos išlaidos]]-Būstas[[#This Row],[Faktinės išlaidos]]","v":{"v":100,"d":"100 EUR"}},null,"Vaizdo įrašai / DVD",{"v":0,"d":"0 EUR"},{"v":50,"d":"50 EUR"},{"$f":"Pramogos[[#This Row],[Numatomos išlaidos]]-Pramogos[[#This Row],[Faktinės išlaidos]]","v":{"v":-50,"d":"-50 EUR"}}]
[null,"Telefonas",{"v":60,"d":"60 EUR"},{"v":100,"d":"100 EUR"},{"$f":"Būstas[[#This Row],[Numatomos išlaidos]]-Būstas[[#This Row],[Faktinės išlaidos]]","v":{"v":-40,"d":"-40 EUR"}},null,"CD",null,null,{"$f":"Pramogos[[#This Row],[Numatomos išlaidos]]-Pramogos[[#This Row],[Faktinės išlaidos]]","v":{"v":0,"d":"0 EUR"}}]
[null,"Elektra",{"v":50,"d":"50 EUR"},{"v":60,"d":"60 EUR"},{"$f":"Būstas[[#This Row],[Numatomos išlaidos]]-Būstas[[#This Row],[Faktinės išlaidos]]","v":{"v":-10,"d":"-10 EUR"}},null,"Filmai",null,null,{"$f":"Pramogos[[#This Row],[Numatomos išlaidos]]-Pramogos[[#This Row],[Faktinės išlaidos]]","v":{"v":0,"d":"0 EUR"}}]
[null,"Dujos",{"v":200,"d":"200 EUR"},{"v":180,"d":"180 EUR"},{"$f":"Būstas[[#This Row],[Numatomos išlaidos]]-Būstas[[#This Row],[Faktinės išlaidos]]","v":{"v":20,"d":"20 EUR"}},null,"Koncertai",null,null,{"$f":"Pramogos[[#This Row],[Numatomos išlaidos]]-Pramogos[[#This Row],[Faktinės išlaidos]]","v":{"v":0,"d":"0 EUR"}}]
[null,"Vandens ir kanalizacija",null,null,{"$f":"Būstas[[#This Row],[Numatomos išlaidos]]-Būstas[[#This Row],[Faktinės išlaidos]]","v":{"v":0,"d":"0 EUR"}},null,"Sporto renginiai",null,null,{"$f":"Pramogos[[#This Row],[Numatomos išlaidos]]-Pramogos[[#This Row],[Faktinės išlaidos]]","v":{"v":0,"d":"0 EUR"}}]
[null,"Kabelinė televizija",null,null,{"$f":"Būstas[[#This Row],[Numatomos išlaidos]]-Būstas[[#This Row],[Faktinės išlaidos]]","v":{"v":0,"d":"0 EUR"}},null,"Teatras",null,null,{"$f":"Pramogos[[#This Row],[Numatomos išlaidos]]-Pramogos[[#This Row],[Faktinės išlaidos]]","v":{"v":0,"d":"0 EUR"}}]
[null,"Atliekų tvarkymas",null,null,{"$f":"Būstas[[#This Row],[Numatomos išlaidos]]-Būstas[[#This Row],[Faktinės išlaidos]]","v":{"v":0,"d":"0 EUR"}},null,"Kita",null,null,{"$f":"Pramogos[[#This Row],[Numatomos išlaidos]]-Pramogos[[#This Row],[Faktinės išlaidos]]","v":{"v":0,"d":"0 EUR"}}]
[null,"Priežiūra arba remontas",null,null,{"$f":"Būstas[[#This Row],[Numatomos išlaidos]]-Būstas[[#This Row],[Faktinės išlaidos]]","v":{"v":0,"d":"0 EUR"}},null,"Kita",null,null,{"$f":"Pramogos[[#This Row],[Numatomos išlaidos]]-Pramogos[[#This Row],[Faktinės išlaidos]]","v":{"v":0,"d":"0 EUR"}}]
[null,"Tiekimas",null,null,{"$f":"Būstas[[#This Row],[Numatomos išlaidos]]-Būstas[[#This Row],[Faktinės išlaidos]]","v":{"v":0,"d":"0 EUR"}},null,"Kita",null,null,{"$f":"Pramogos[[#This Row],[Numatomos išlaidos]]-Pramogos[[#This Row],[Faktinės išlaidos]]","v":{"v":0,"d":"0 EUR"}}]
[null,"Kita",null,null,{"$f":"Būstas[[#This Row],[Numatomos išlaidos]]-Būstas[[#This Row],[Faktinės išlaidos]]","v":{"v":0,"d":"0 EUR"}},null,"Suma",{"$f":"SUBTOTAL(109,Pramogos[Numatomos išlaidos])","v":{"v":0,"d":"0 EUR"}},{"$f":"SUBTOTAL(109,Pramogos[Faktinės išlaidos])","v":{"v":50,"d":"50 EUR"}},{"$f":"SUBTOTAL(109,Pramogos[Skirtumas])","v":{"v":-50,"d":"-50 EUR"}}]
[null,"Suma",{"$f":"SUBTOTAL(109,Būstas[Numatomos išlaidos])","v":{"v":1810,"d":"1,810 EUR"}},{"$f":"SUBTOTAL(109,Būstas[Faktinės išlaidos])","v":{"v":1740,"d":"1,740 EUR"}},{"$f":"SUBTOTAL(109,Būstas[Skirtumas])","v":{"v":70,"d":"70 EUR"}}]
[{"$nulls":6},"PASKOLOS","Numatomos išlaidos","Faktinės išlaidos","Skirtumas"]
[null,"TRANSPORTAS","Numatomos išlaidos","Faktinės išlaidos","Skirtumas",null,"Asmeninės",null,null,{"$f":"Paskolos[[#This Row],[Numatomos išlaidos]]-Paskolos[[#This Row],[Faktinės išlaidos]]","v":{"v":0,"d":"0 EUR"}}]
[null,"Įmoka už automobilį",{"v":250,"d":"250 EUR"},{"v":250,"d":"250 EUR"},{"$f":"Transportas[[#This Row],[Numatomos išlaidos]]-Transportas[[#This Row],[Faktinės išlaidos]]","v":{"v":0,"d":"0 EUR"}},null,"Studento",null,null,{"$f":"Paskolos[[#This Row],[Numatomos išlaidos]]-Paskolos[[#This Row],[Faktinės išlaidos]]","v":{"v":0,"d":"0 EUR"}}]
[null,"Autobuso / taksi mokestis",null,null,{"$f":"Transportas[[#This Row],[Numatomos išlaidos]]-Transportas[[#This Row],[Faktinės išlaidos]]","v":{"v":0,"d":"0 EUR"}},null,"Kredito kortelė",null,null,{"$f":"Paskolos[[#This Row],[Numatomos išlaidos]]-Paskolos[[#This Row],[Faktinės išlaidos]]","v":{"v":0,"d":"0 EUR"}}]
[null,"Draudimas",null,null,{"$f":"Transportas[[#This Row],[Numatomos išlaidos]]-Transportas[[#This Row],[Faktinės išlaidos]]","v":{"v":0,"d":"0 EUR"}},null,"Kredito kortelė",null,null,{"$f":"Paskolos[[#This Row],[Numatomos išlaidos]]-Paskolos[[#This Row],[Faktinės išlaidos]]","v":{"v":0,"d":"0 EUR"}}]
[null,"Licencijavimas",null,null,{"$f":"Transportas[[#This Row],[Numatomos išlaidos]]-Transportas[[#This Row],[Faktinės išlaidos]]","v":{"v":0,"d":"0 EUR"}},null,"Kredito kortelė",null,null,{"$f":"Paskolos[[#This Row],[Numatomos išlaidos]]-Paskolos[[#This Row],[Faktinės išlaidos]]","v":{"v":0,"d":"0 EUR"}}]
[null,"Kuras",null,null,{"$f":"Transportas[[#This Row],[Numatomos išlaidos]]-Transportas[[#This Row],[Faktinės išlaidos]]","v":{"v":0,"d":"0 EUR"}},null,"Kita",null,null,{"$f":"Paskolos[[#This Row],[Numatomos išlaidos]]-Paskolos[[#This Row],[Faktinės išlaidos]]","v":{"v":0,"d":"0 EUR"}}]
[null,"Priežiūra",null,null,{"$f":"Transportas[[#This Row],[Numatomos išlaidos]]-Transportas[[#This Row],[Faktinės išlaidos]]","v":{"v":0,"d":"0 EUR"}},null,"Suma",{"$f":"SUBTOTAL(109,Paskolos[Numatomos išlaidos])","v":{"v":0,"d":"0 EUR"}},{"$f":"SUBTOTAL(109,Paskolos[Faktinės išlaidos])","v":{"v":0,"d":"0 EUR"}},{"$f":"SUBTOTAL(109,Paskolos[Skirtumas])","v":{"v":0,"d":"0 EUR"}}]
[null,"Kita",null,null,{"$f":"Transportas[[#This Row],[Numatomos išlaidos]]-Transportas[[#This Row],[Faktinės išlaidos]]","v":{"v":0,"d":"0 EUR"}}]
[null,"Suma",{"$f":"SUBTOTAL(109,Transportas[Numatomos išlaidos])","v":{"v":250,"d":"250 EUR"}},{"$f":"SUBTOTAL(109,Transportas[Faktinės išlaidos])","v":{"v":250,"d":"250 EUR"}},{"$f":"SUBTOTAL(109,Transportas[Skirtumas])","v":{"v":0,"d":"0 EUR"}},null,"MOKESČIAI","Numatomos išlaidos","Faktinės išlaidos","Skirtumas"]
[{"$nulls":6},"Federaliniai",null,null,{"$f":"Mokesčiai[[#This Row],[Numatomos išlaidos]]-Mokesčiai[[#This Row],[Faktinės išlaidos]]","v":{"v":0,"d":"0 EUR"}}]
[null,"DRAUDIMAS","Numatomos išlaidos","Faktinės išlaidos","Skirtumas",null,"Šalies",null,null,{"$f":"Mokesčiai[[#This Row],[Numatomos išlaidos]]-Mokesčiai[[#This Row],[Faktinės išlaidos]]","v":{"v":0,"d":"0 EUR"}}]
[null,"Namų",null,null,{"$f":"Draudimas[[#This Row],[Numatomos išlaidos]]-Draudimas[[#This Row],[Faktinės išlaidos]]","v":{"v":0,"d":"0 EUR"}},null,"Vietiniai",null,null,{"$f":"Mokesčiai[[#This Row],[Numatomos išlaidos]]-Mokesčiai[[#This Row],[Faktinės išlaidos]]","v":{"v":0,"d":"0 EUR"}}]
[null,"Sveikatos",null,null,{"$f":"Draudimas[[#This Row],[Numatomos išlaidos]]-Draudimas[[#This Row],[Faktinės išlaidos]]","v":{"v":0,"d":"0 EUR"}},null,"Kita",null,null,{"$f":"Mokesčiai[[#This Row],[Numatomos išlaidos]]-Mokesčiai[[#This Row],[Faktinės išlaidos]]","v":{"v":0,"d":"0 EUR"}}]
[null,"Gyvybės",null,null,{"$f":"Draudimas[[#This Row],[Numatomos išlaidos]]-Draudimas[[#This Row],[Faktinės išlaidos]]","v":{"v":0,"d":"0 EUR"}},null,"Suma",{"$f":"SUBTOTAL(109,Mokesčiai[Numatomos išlaidos])","v":{"v":0,"d":"0 EUR"}},{"$f":"SUBTOTAL(109,Mokesčiai[Faktinės išlaidos])","v":{"v":0,"d":"0 EUR"}},{"$f":"SUBTOTAL(109,Mokesčiai[Skirtumas])","v":{"v":0,"d":"0 EUR"}}]
[null,"Kita",null,null,{"$f":"Draudimas[[#This Row],[Numatomos išlaidos]]-Draudimas[[#This Row],[Faktinės išlaidos]]","v":{"v":0,"d":"0 EUR"}}]
[null,"Suma",{"$f":"SUBTOTAL(109,Draudimas[Numatomos išlaidos])","v":{"v":0,"d":"0 EUR"}},{"$f":"SUBTOTAL(109,Draudimas[Faktinės išlaidos])","v":{"v":0,"d":"0 EUR"}},{"$f":"SUBTOTAL(109,Draudimas[Skirtumas])","v":{"v":0,"d":"0 EUR"}},null,"SANTAUPOS ARBA INVESTICIJOS","Numatomos išlaidos","Faktinės išlaidos","Skirtumas"]
[{"$nulls":6},"Pensijos sąskaita",null,null,{"$f":"Santaupos_ar_investicijos[[#This Row],[Numatomos išlaidos]]-Santaupos_ar_investicijos[[#This Row],[Faktinės išlaidos]]","v":{"v":0,"d":"0 EUR"}}]
[null,"MAISTAS","Numatomos išlaidos","Faktinės išlaidos","Skirtumas",null,"Investicijų sąskaita",null,null,{"$f":"Santaupos_ar_investicijos[[#This Row],[Numatomos išlaidos]]-Santaupos_ar_investicijos[[#This Row],[Faktinės išlaidos]]","v":{"v":0,"d":"0 EUR"}}]
[null,"Maisto prekės",null,null,{"$f":"Maistas[[#This Row],[Numatomos išlaidos]]-Maistas[[#This Row],[Faktinės išlaidos]]","v":{"v":0,"d":"0 EUR"}},null,"Kita",null,null,{"$f":"Santaupos_ar_investicijos[[#This Row],[Numatomos išlaidos]]-Santaupos_ar_investicijos[[#This Row],[Faktinės išlaidos]]","v":{"v":0,"d":"0 EUR"}}]
[null,"Restoranai",null,null,{"$f":"Maistas[[#This Row],[Numatomos išlaidos]]-Maistas[[#This Row],[Faktinės išlaidos]]","v":{"v":0,"d":"0 EUR"}},null,"Suma",{"$f":"SUBTOTAL(109,Santaupos_ar_investicijos[Numatomos išlaidos])","v":{"v":0,"d":"0 EUR"}},{"$f":"SUBTOTAL(109,Santaupos_ar_investicijos[Faktinės išlaidos])","v":{"v":0,"d":"0 EUR"}},{"$f":"SUBTOTAL(109,Santaupos_ar_investicijos[Skirtumas])","v":{"v":0,"d":"0 EUR"}}]
[null,"Kita",null,null,{"$f":"Maistas[[#This Row],[Numatomos išlaidos]]-Maistas[[#This Row],[Faktinės išlaidos]]","v":{"v":0,"d":"0 EUR"}}]
[null,"Suma",{"$f":"SUBTOTAL(109,Maistas[Numatomos išlaidos])","v":{"v":0,"d":"0 EUR"}},{"$f":"SUBTOTAL(109,Maistas[Faktinės išlaidos])","v":{"v":0,"d":"0 EUR"}},{"$f":"SUBTOTAL(109,Maistas[Skirtumas])","v":{"v":0,"d":"0 EUR"}},null,"DOVANOS IR AUKOS","Numatomos išlaidos","Faktinės išlaidos","Skirtumas"]
[{"$nulls":6},"Labdara 1",null,null,{"$f":"Dovanos_ir_aukos[[#This Row],[Numatomos išlaidos]]-Dovanos_ir_aukos[[#This Row],[Faktinės išlaidos]]","v":{"v":0,"d":"0 EUR"}}]
[null,"Gyvūnai","Numatomos išlaidos","Faktinės išlaidos","Skirtumas",null,"Labdara 2",null,null,{"$f":"Dovanos_ir_aukos[[#This Row],[Numatomos išlaidos]]-Dovanos_ir_aukos[[#This Row],[Faktinės išlaidos]]","v":{"v":0,"d":"0 EUR"}}]
[null,"Maistas",null,null,{"$f":"Gyvūnai[[#This Row],[Numatomos išlaidos]]-Gyvūnai[[#This Row],[Faktinės išlaidos]]","v":{"v":0,"d":"0 EUR"}},null,"Labdara 3",null,null,{"$f":"Dovanos_ir_aukos[[#This Row],[Numatomos išlaidos]]-Dovanos_ir_aukos[[#This Row],[Faktinės išlaidos]]","v":{"v":0,"d":"0 EUR"}}]
[null,"Medicininės išlaidos",null,null,{"$f":"Gyvūnai[[#This Row],[Numatomos išlaidos]]-Gyvūnai[[#This Row],[Faktinės išlaidos]]","v":{"v":0,"d":"0 EUR"}},null,"Suma",{"$f":"SUBTOTAL(109,Dovanos_ir_aukos[Numatomos išlaidos])","v":{"v":0,"d":"0 EUR"}},{"$f":"SUBTOTAL(109,Dovanos_ir_aukos[Faktinės išlaidos])","v":{"v":0,"d":"0 EUR"}},{"$f":"SUBTOTAL(109,Dovanos_ir_aukos[Skirtumas])","v":{"v":0,"d":"0 EUR"}}]
[null,"Priežiūra",null,null,{"$f":"Gyvūnai[[#This Row],[Numatomos išlaidos]]-Gyvūnai[[#This Row],[Faktinės išlaidos]]","v":{"v":0,"d":"0 EUR"}}]
[null,"Žaislai",null,null,{"$f":"Gyvūnai[[#This Row],[Numatomos išlaidos]]-Gyvūnai[[#This Row],[Faktinės išlaidos]]","v":{"v":0,"d":"0 EUR"}},null,"TEISINĖS","Numatomos išlaidos","Faktinės išlaidos","Skirtumas"]
[null,"Kita",null,null,{"$f":"Gyvūnai[[#This Row],[Numatomos išlaidos]]-Gyvūnai[[#This Row],[Faktinės išlaidos]]","v":{"v":0,"d":"0 EUR"}},null,"Teisininkas",null,null,{"$f":"Teisinės[[#This Row],[Numatomos išlaidos]]-Teisinės[[#This Row],[Faktinės išlaidos]]","v":{"v":0,"d":"0 EUR"}}]
[null,"Suma",{"$f":"SUBTOTAL(109,Gyvūnai[Numatomos išlaidos])","v":{"v":0,"d":"0 EUR"}},{"$f":"SUBTOTAL(109,Gyvūnai[Faktinės išlaidos])","v":{"v":0,"d":"0 EUR"}},{"$f":"SUBTOTAL(109,Gyvūnai[Skirtumas])","v":{"v":0,"d":"0 EUR"}},null,"Alimentai",null,null,{"$f":"Teisinės[[#This Row],[Numatomos išlaidos]]-Teisinės[[#This Row],[Faktinės išlaidos]]","v":{"v":0,"d":"0 EUR"}}]
[{"$nulls":6},"Mokėjimai paskolai arba teismo sprendimui padengti",null,null,{"$f":"Teisinės[[#This Row],[Numatomos išlaidos]]-Teisinės[[#This Row],[Faktinės išlaidos]]","v":{"v":0,"d":"0 EUR"}}]
[null,"ASMENINĖ PRIEŽIŪRA","Numatomos išlaidos","Faktinės išlaidos","Skirtumas",null,"Kita",null,null,{"$f":"Teisinės[[#This Row],[Numatomos išlaidos]]-Teisinės[[#This Row],[Faktinės išlaidos]]","v":{"v":0,"d":"0 EUR"}}]
[null,"Medicininės išlaidos",null,null,{"$f":"AsmeninėPriežiūra[[#This Row],[Numatomos išlaidos]]-AsmeninėPriežiūra[[#This Row],[Faktinės išlaidos]]","v":{"v":0,"d":"0 EUR"}},null,"Suma",{"$f":"SUBTOTAL(109,Teisinės[Numatomos išlaidos])","v":{"v":0,"d":"0 EUR"}},{"$f":"SUBTOTAL(109,Teisinės[Faktinės išlaidos])","v":{"v":0,"d":"0 EUR"}},{"$f":"SUBTOTAL(109,Teisinės[Skirtumas])","v":{"v":0,"d":"0 EUR"}}]
[null,"Plaukai / nagai",null,null,{"$f":"AsmeninėPriežiūra[[#This Row],[Numatomos išlaidos]]-AsmeninėPriežiūra[[#This Row],[Faktinės išlaidos]]","v":{"v":0,"d":"0 EUR"}}]
[null,"Drabužiai",null,null,{"$f":"AsmeninėPriežiūra[[#This Row],[Numatomos išlaidos]]-AsmeninėPriežiūra[[#This Row],[Faktinės išlaidos]]","v":{"v":0,"d":"0 EUR"}}]
[null,"Drabužių valykla",null,null,{"$f":"AsmeninėPriežiūra[[#This Row],[Numatomos išlaidos]]-AsmeninėPriežiūra[[#This Row],[Faktinės išlaidos]]","v":{"v":0,"d":"0 EUR"}}]
[null,"Sveikatos klubas",null,null,{"$f":"AsmeninėPriežiūra[[#This Row],[Numatomos išlaidos]]-AsmeninėPriežiūra[[#This Row],[Faktinės išlaidos]]","v":{"v":0,"d":"0 EUR"}}]
[null,"Organizacijos mokesčiai ir įmokos",null,null,{"$f":"AsmeninėPriežiūra[[#This Row],[Numatomos išlaidos]]-AsmeninėPriežiūra[[#This Row],[Faktinės išlaidos]]","v":{"v":0,"d":"0 EUR"}}]
[null,"Kita",null,null,{"$f":"AsmeninėPriežiūra[[#This Row],[Numatomos išlaidos]]-AsmeninėPriežiūra[[#This Row],[Faktinės išlaidos]]","v":{"v":0,"d":"0 EUR"}}]
[null,"Suma",{"$f":"SUBTOTAL(109,AsmeninėPriežiūra[Numatomos išlaidos])","v":{"v":0,"d":"0 EUR"}},{"$f":"SUBTOTAL(109,AsmeninėPriežiūra[Faktinės išlaidos])","v":{"v":0,"d":"0 EUR"}},{"$f":"SUBTOTAL(109,AsmeninėPriežiūra[Skirtumas])","v":{"v":0,"d":"0 EUR"}}]